bitfinex-derivatives/quotes_BNBF0:USTF0_20250810
["timestamp","ask_amount","ask_price","bid_price","bid_amount"]
[1754804360517,0.5,813.83,813.17,1.65068391]
[1754804361511,0.5,813.83,813.16,1.65068391]
[1754804362513,0.5,813.83,813.15,1.65068391]
[1754804363322,0.5,813.83,813.14,1.65068391]
[1754804364114,0.5,813.83,813.1,1.65068391]
[1754804364610,0.5,813.83,813.26,1.09660294]
[1754804365811,0.5,813.83,813.28,1.09660294]
[1754804366318,0.5,813.83,813.15,1.09660294]
[1754804366516,0.5,813.97,813.2,1.09660294]
[1754804367014,0.5,813.97,813.21,1.09660294]
[1754804367411,0.5,813.97,813.2,1.09660294]
[1754804369220,0.5,813.97,813.22,1.09660294]
[1754804369420,0.5,813.97,813.28,1.09660294]
[1754804369721,0.5,813.97,813.1,1.65068391]
[1754804369722,0.5,813.97,813.43,1.09660294]
[1754804369922,0.5,813.97,813.34,1.09660294]
[1754804371816,0.5,814.09,813.34,1.09660294]
[1754804372918,0.5,814.09,813.33,1.09660294]
[1754804373619,0.5,814.09,813.34,1.09660294]
[1754804373923,0.5,814.07,813.34,1.09660294]
[1754804374218,0.5,814.07,813.22,1.09660294]
[1754804376324,0.5,814.07,813.23,1.09660294]
[1754804378328,0.5,814.07,813.24,1.09660294]
[1754804379836,0.5,814.07,813.3,1.09660294]
[1754804380130,0.5,814.07,813.31,1.09660294]
[1754804380529,0.5,814.07,813.32,1.09660294]
[1754804380732,0.407,814.08,813.32,1.09660294]
[1754804380934,0.5,814.09,813.32,1.09660294]
[1754804381235,0.352,814.06,813.32,1.09660294]
[1754804381432,0.5,814.09,813.33,1.09660294]
[1754804382335,0.5,814.09,813.34,1.09660294]
[1754804382632,0.5,814.09,813.35,1.09660294]
[1754804383435,0.5,814.09,813.36,1.09660294]
[1754804384138,0.5,814.09,813.47,1.09660294]
[1754804384633,0.5,814.09,813.48,1.09660294]
[1754804385434,0.5,814.09,813.5,1.09660294]
[1754804385637,0.5,814.09,813.51,1.09660294]
[1754804386437,0.5,814.09,813.52,1.09660294]
[1754804387334,0.5,814.09,813.54,1.09660294]
[1754804388435,0.5,814.09,813.56,1.09660294]
[1754804389339,0.5,814.09,813.57,1.09660294]
[1754804390440,0.5,814.09,813.6,1.09660294]
[1754804391442,0.5,814.09,813.62,1.09660294]
[1754804391742,0.5,814.09,813.57,1.09660294]
[1754804392451,0.5,814.09,813.56,1.09660294]
[1754804392645,0.5,814.09,813.57,1.09660294]
[1754804392845,0.21400964,814.1,813.55,1.09660294]
[1754804393247,0.21400964,814.1,813.59,1.09660294]
[1754804393540,0.21400964,814.1,813.61,1.09660294]
[1754804393944,0.21400964,814.1,813.6,1.09660294]
[1754804394141,0.21400964,814.1,813.61,1.09660294]
[1754804394342,0.21400964,814.1,813.63,1.09660294]
[1754804395244,0.21400964,814.1,813.42,1.65068391]
[1754804395245,0.21400964,814.1,813.7,1.09660294]
[1754804395544,0.21400964,814.1,813.71,1.09660294]
[1754804396542,0.21400964,814.1,813.72,1.09660294]
[1754804397048,0.21400964,814.1,813.82,1.09660294]
[1754804397944,0.21400964,814.1,813.74,1.09660294]
[1754804398143,0.21400964,814.1,813.81,1.09660294]
[1754804398349,0.21400964,814.1,813.83,1.09660294]
[1754804400443,0.21400964,814.1,813.84,1.09660294]
[1754804400748,0.21400964,814.1,813.85,1.09660294]
[1754804401247,0.21400964,814.1,813.8,1.09660294]
[1754804401548,0.21400964,814.1,813.79,1.09660294]
[1754804401744,0.21400964,814.1,813.8,1.09660294]
[1754804402249,0.21400964,814.1,813.79,1.09660294]
[1754804402446,0.21400964,814.1,813.8,1.09660294]
[1754804403248,0.21400964,814.1,813.79,1.09660294]
[1754804403548,0.21400964,814.1,813.8,1.09660294]
[1754804404248,0.21400964,814.1,813.56,1.65068391]
[1754804404249,0.21400964,814.1,813.81,1.09660294]
[1754804404449,0.21400964,814.1,813.82,1.09660294]
[1754804404650,0.21400964,814.1,813.94,1.09660294]
[1754804405049,0.21400964,814.1,813.95,1.09660294]
[1754804405250,0.21400964,814.1,813.94,1.09660294]
[1754804405650,0.21400964,814.1,813.97,1.09660294]
[1754804406350,0.21400964,814.1,813.96,1.09660294]
[1754804407350,0.21400964,814.1,813.95,1.09660294]
[1754804407647,0.21400964,814.1,813.96,1.09660294]
[1754804408143,0.21400964,814.1,813.74,1.65068391]
[1754804408144,0.21400964,814.1,813.95,1.09660294]
[1754804408853,0.21400964,814.1,813.94,1.09660294]
[1754804409552,0.21400964,814.1,814.05,1.09660294]
[1754804410350,0.21400964,814.1,814.04,1.09660294]
[1754804411349,0.21400964,814.1,814.03,1.09660294]
[1754804412254,0.21400964,814.1,814.02,1.09660294]
[1754804413254,0.21400964,814.1,814.01,1.09660294]
[1754804414150,0.21400964,814.1,813.91,1.09660294]
[1754804414349,0.21400964,814.1,813.94,1.09660294]
[1754804415355,0.21400964,814.1,813.93,1.09660294]
[1754804415857,0.21400964,814.1,813.94,1.09660294]
[1754804416257,0.21400964,814.1,813.93,1.09660294]
[1754804416551,0.21400964,814.1,813.94,1.09660294]
[1754804417156,0.21400964,814.1,813.95,1.09660294]
[1754804417456,0.21400964,814.1,813.94,1.09660294]
[1754804417852,0.21400964,814.1,813.95,1.09660294]
[1754804418157,0.21400964,814.1,813.94,1.09660294]
[1754804420359,0.21400964,814.1,813.93,1.09660294]
[1754804422160,0.21400964,814.1,813.92,1.09660294]
[1754804422359,0.21400964,814.1,813.89,1.09660294]
[1754804422560,0.21400964,814.1,813.93,1.09660294]
[1754804423661,0.21400964,814.1,813.98,1.09660294]
[1754804424061,0.21400964,814.1,813.94,1.65068391]
[1754804424264,0.21400964,814.1,814.03,1.65068391]
[1754804425161,0.21400964,814.1,813.42,2.75971933]
[1754804425162,0.21400964,814.1,814.02,1.65068391]
[1754804427261,0.21400964,814.1,814.01,1.65068391]
[1754804430366,0.21400964,814.1,813.99,1.65068391]
[1754804430566,0.21400964,814.1,814.0,1.65068391]
[1754804431064,0.21400964,814.1,814.04,1.65068391]
[1754804431263,0.21400964,814.1,814.05,1.65068391]
[1754804431667,0.21400964,814.1,814.07,1.65068391]
[1754804433064,0.21400964,814.1,814.08,1.65068391]
[1754804433469,0.21400964,814.1,813.51,2.75971933]
[1754804433669,0.21400964,814.1,813.52,1.03216735]
[1754804433865,0.21400964,814.1,813.46,2.75971933]
[1754804434065,0.21400964,814.1,813.47,1.03216735]
[1754804434364,0.21400964,814.1,813.48,1.03216735]
[1754804434564,0.21400964,814.1,813.49,1.03216735]
[1754804434766,0.21400964,814.1,813.5,1.03216735]
[1754804434969,0.21400964,814.1,813.51,1.03216735]
[1754804435170,0.21400964,814.1,813.52,1.03216735]
[1754804435367,0.21400964,814.1,813.53,1.03216735]
[1754804435672,0.21400964,814.1,813.54,1.03216735]
[1754804435867,0.21400964,814.1,813.55,1.03216735]
[1754804436068,0.21400964,814.1,813.56,1.03216735]
[1754804436273,0.21400964,814.1,813.57,1.03216735]
[1754804436472,0.21400964,814.1,813.58,1.03216735]
[1754804436672,0.21400964,814.1,813.59,1.03216735]
[1754804436871,0.21400964,814.1,813.48,2.75971933]
[1754804437068,0.21400964,814.1,813.49,1.03177584]
[1754804437271,0.21400964,814.1,813.5,1.03177584]
[1754804437568,0.21400964,814.1,813.51,1.03177584]
[1754804437772,0.21400964,814.1,813.52,1.03177584]
[1754804437969,0.21400964,814.1,813.53,1.03177584]
[1754804438168,0.21400964,814.1,813.54,1.03177584]
[1754804438371,0.21400964,814.1,813.55,1.03177584]
[1754804438677,0.21400964,814.1,813.56,1.03177584]
[1754804438874,0.21400964,814.1,813.57,1.03177584]
[1754804439075,0.21400964,814.1,813.58,1.03177584]
[1754804439376,0.21400964,814.1,813.59,1.03177584]
[1754804439673,0.21400964,814.1,813.6,1.03177584]
[1754804439874,0.21400964,814.1,813.61,1.03177584]
[1754804440069,0.21400964,814.1,813.51,2.75971933]
[1754804440269,0.21400964,814.1,813.52,1.03161843]
[1754804440574,0.21400964,814.1,813.53,1.03161843]
[1754804440768,0.21400964,814.1,813.54,1.03161843]
[1754804441073,0.21400964,814.1,813.55,1.03161843]
[1754804441273,0.21400964,814.1,813.56,1.03161843]
[1754804441474,0.21400964,814.1,813.57,1.03161843]
[1754804441673,0.21400964,814.1,813.58,1.03161843]
[1754804441876,0.21400964,814.1,813.59,1.03161843]
[1754804442170,0.21400964,814.1,813.6,1.03161843]
[1754804442370,0.21400964,814.1,813.61,1.03164001]
[1754804442573,0.21400964,814.1,813.54,2.75971933]
[1754804442768,0.21400964,814.1,813.55,1.0316944]
[1754804442970,0.21400964,814.1,813.56,1.0316944]
[1754804443173,0.21400964,814.1,813.57,1.0316944]
[1754804443370,0.01177266,814.1,813.58,1.0316944]
[1754804443577,0.5,814.94,813.59,1.0316944]
[1754804443772,0.5,814.94,814.38,1.09652579]
[1754804444273,0.5,814.94,814.41,1.09652579]
[1754804444477,0.5,814.94,814.42,1.09652579]
[1754804445079,0.5,814.94,814.43,1.09652579]
[1754804445373,0.5,814.94,814.44,1.09652579]
[1754804446473,0.5,814.94,814.43,1.09652579]
[1754804446678,0.21381766,814.82,814.43,1.09652579]
[1754804447477,0.21381766,814.82,814.44,1.09652579]
[1754804448372,0.21381766,814.82,814.45,1.09652579]
[1754804449472,0.21381766,814.82,814.47,1.09652579]
[1754804449677,0.21381766,814.82,814.43,1.09652579]
[1754804450375,0.21381766,814.82,814.44,1.09652579]
[1754804451182,0.21381766,814.82,814.45,1.09652579]
[1754804451383,0.21381766,814.82,813.64,2.75971933]
[1754804451384,0.21381766,814.82,814.46,1.09652579]
[1754804451780,0.21381766,814.82,813.68,2.75971933]
[1754804451781,0.21381766,814.82,814.45,1.09652579]
[1754804452485,0.21381766,814.82,814.47,1.09652579]
[1754804453387,0.21381766,814.82,814.48,1.09652579]
[1754804453681,0.21381766,814.82,814.47,1.09652579]
[1754804454280,0.21381766,814.82,814.36,1.09652579]
[1754804454585,0.21381766,814.82,814.37,1.09652579]
[1754804457187,0.21381766,814.82,814.35,1.09652579]
[1754804457390,0.21381766,814.82,814.36,1.09652579]
[1754804458486,0.21381766,814.82,814.39,1.09652579]
[1754804461092,0.21381766,814.82,814.38,1.09652579]
[1754804461490,0.21381766,814.82,814.39,1.09652579]
[1754804463093,0.21381766,814.82,814.4,1.09652579]
[1754804464192,0.21381766,814.82,814.31,1.09652579]
[1754804465802,0.21381766,814.82,814.32,1.09652579]
[1754804466088,0.21381766,814.82,814.33,1.09652579]
[1754804466488,0.21381766,814.82,814.34,1.09652579]
[1754804466990,0.21381766,814.82,814.23,1.09652579]
[1754804467293,0.21381766,814.82,814.06,1.09652579]
[1754804467493,0.21381766,814.82,814.07,1.09652579]
[1754804467696,0.292,814.79,814.07,1.09652579]
[1754804468004,0.21381766,814.82,814.07,1.09652579]
[1754804468693,0.21381766,814.82,814.06,1.09652579]
[1754804468893,0.21381766,814.82,814.07,1.09652579]
[1754804469094,0.21381766,814.82,814.08,1.09652579]
[1754804470093,0.21381766,814.82,814.1,1.09652579]
[1754804470491,0.21381766,814.82,814.11,1.09652579]
[1754804470695,0.21381766,814.82,813.87,1.64478869]
[1754804470696,0.21381766,814.82,814.26,1.09652579]
[1754804470893,0.21381766,814.82,814.34,1.09652579]
[1754804471097,0.21381766,814.82,814.36,1.09652579]
[1754804471398,0.21381766,814.82,814.37,1.09652579]
[1754804472294,0.21381766,814.82,814.38,1.09652579]
[1754804473006,0.21381766,814.82,814.14,1.09652579]
[1754804473207,0.21381766,814.82,814.58,1.09652579]
[1754804473494,0.21381766,814.82,814.67,1.09652579]
[1754804474294,0.21381766,814.82,814.79,1.09652579]
[1754804475495,0.21381766,814.82,814.78,1.09652579]
[1754804476299,0.21381766,814.82,814.79,1.09652579]
[1754804476596,0.21381766,814.82,814.76,1.09652579]
[1754804477498,0.21381766,814.82,813.84,2.75971933]
[1754804477499,0.21381766,814.82,814.75,1.09652579]
[1754804478094,0.21381766,814.82,814.76,1.09652579]
[1754804478496,0.21381766,814.82,814.75,1.09652579]
[1754804479201,0.21381766,814.82,814.76,1.09652579]
[1754804479400,0.21381766,814.82,814.75,1.09652579]
[1754804480002,0.21381766,814.82,814.79,1.09652579]
[1754804481096,0.21381766,814.82,814.81,1.09652579]
[1754804481303,0.21381766,814.82,814.67,1.64478869]
[1754804481502,0.21381766,814.82,814.66,1.64478869]
[1754804482304,0.21381766,814.82,814.67,1.64478869]
[1754804484103,0.21381766,814.82,814.81,1.10108349]
[1754804484301,0.21381766,814.82,814.8,1.10108349]
[1754804486204,0.21381766,814.82,814.81,1.10108349]
[1754804486509,0.21381766,814.82,814.7,1.64478869]
[1754804486805,0.21381766,814.82,814.71,1.64478869]
[1754804487009,0.21381766,814.82,814.7,1.64478869]
[1754804487209,0.21381766,814.82,814.71,1.64478869]
[1754804487406,0.21381766,814.82,814.7,1.64478869]
[1754804487706,0.21381766,814.82,814.74,1.10080221]
[1754804488511,0.21381766,814.82,814.75,1.10080221]
[1754804488711,0.21381766,814.82,814.76,1.10080221]
[1754804491112,0.21381766,814.82,814.14,2.75971933]
[1754804491608,0.21381766,814.82,814.81,1.65019403]
[1754804492311,0.21381766,814.82,814.78,1.65019403]
[1754804493514,0.21381766,814.82,814.77,1.65019403]
[1754804494216,0.21381766,814.82,814.09,2.75971933]
[1754804494511,0.21381766,814.82,814.79,1.6489434]
[1754804495416,0.21381766,814.82,814.09,2.75971933]
[1754804495417,0.21381766,814.82,814.77,1.6489434]
[1754804496412,0.21381766,814.82,814.76,1.6489434]
[1754804497413,0.21381766,814.82,814.75,1.6489434]
[1754804499112,0.21381766,814.82,814.73,1.6489434]
[1754804499516,0.21381766,814.82,814.72,1.6489434]
[1754804500514,0.21381766,814.82,814.71,1.6489434]
[1754804500820,0.21381766,814.82,814.73,1.6489434]
[1754804501018,0.21381766,814.82,814.74,1.6489434]
[1754804501219,0.21381766,814.82,814.73,1.6489434]
[1754804502015,0.21381766,814.82,814.75,1.6489434]
[1754804502418,0.21381766,814.82,814.74,1.6489434]
[1754804504216,0.21381766,814.82,814.7,1.6489434]
[1754804505320,0.21381766,814.82,814.71,1.6489434]
[1754804506416,0.21381766,814.82,814.7,1.6489434]
[1754804509122,0.21381766,814.82,814.75,1.6489434]
[1754804510120,0.21381766,814.82,814.73,1.6489434]
[1754804511927,0.21381766,814.82,814.72,1.6489434]
[1754804512224,0.21381766,814.82,814.73,1.6489434]
[1754804513823,0.21381766,814.82,814.74,1.6489434]
[1754804514227,0.21381766,814.82,814.16,2.75971933]
[1754804514426,0.21381766,814.82,814.26,2.75971933]
[1754804515027,0.21381766,814.82,814.25,2.75971933]
[1754804515327,0.21381766,814.82,814.26,2.75971933]
[1754804516628,0.21381766,814.82,814.28,2.75971933]
[1754804518929,0.21381766,814.82,814.29,2.75971933]
[1754804520131,0.21381766,814.82,814.36,2.75971933]
[1754804520632,0.21381766,814.82,814.23,2.75971933]
[1754804521627,0.21381766,814.82,814.24,2.75971933]
[1754804522229,0.21381766,814.82,814.25,2.75971933]
[1754804522832,0.21381766,814.82,814.29,2.75971933]
[1754804523828,0.21381766,814.82,813.99,3.86360707]
[1754804523829,0.21381766,814.82,814.13,2.75971933]
[1754804524131,0.21381766,814.82,814.14,1.03371577]
[1754804524432,0.21381766,814.82,814.16,2.75971933]
[1754804524628,0.21381766,814.82,814.17,1.03371577]
[1754804524830,0.21381766,814.82,814.18,1.03371577]
[1754804525026,0.21381766,814.82,814.19,1.03371577]
[1754804525229,0.21381766,814.82,814.2,1.03371577]
[1754804525428,0.21381766,814.82,814.21,1.03399772]
[1754804525730,0.21381766,814.82,814.22,1.03399772]
[1754804525927,0.21381766,814.82,814.23,1.03399772]
[1754804526128,0.21381766,814.82,814.16,2.75971933]
[1754804526329,0.21381766,814.82,814.17,1.03418405]
[1754804526530,0.21381766,814.82,814.18,1.03418405]
[1754804526730,0.21381766,814.82,814.19,1.03418405]
[1754804526931,0.21381766,814.82,814.2,1.03418405]
[1754804527130,0.21381766,814.82,814.21,1.03418405]
[1754804527431,0.21381766,814.82,814.19,2.75971933]
[1754804527632,0.21381766,814.82,814.2,1.03451385]
[1754804527936,0.21381766,814.82,814.21,1.03451385]
[1754804528131,0.21381766,814.82,814.19,2.75971933]
[1754804528332,0.01225439,814.82,814.2,3.79468452]
[1754804528531,0.5,815.53,814.2,2.75971933]
[1754804528733,0.5,815.53,815.11,1.09956217]
[1754804529131,0.5,815.53,815.13,1.09956217]
[1754804529436,0.5,815.53,815.09,1.09956217]
[1754804529637,0.5,815.53,815.11,1.09956217]
[1754804530136,0.5,815.53,815.15,1.09956217]
[1754804530337,0.5,815.53,815.18,1.09956217]
[1754804531437,0.5,815.53,815.02,1.64934325]
[1754804531438,0.5,815.53,815.2,1.09956217]
[1754804531636,0.21365947,815.45,815.2,1.09956217]
[1754804532136,0.21365947,815.45,815.2,0.45293065]
[1754804532334,0.21365947,815.45,815.07,1.64934325]
[1754804532534,0.21365947,815.45,814.88,1.64934325]
[1754804532734,0.21365947,815.45,814.76,1.64934325]
[1754804532735,0.5,815.36,814.76,1.64934325]
[1754804534237,0.5,815.36,814.71,1.64934325]
[1754804534437,0.5,815.3,814.71,1.64934325]
[1754804535438,0.5,815.31,814.69,1.64934325]
[1754804536338,0.5,815.31,814.7,1.64934325]
[1754804537245,0.21365947,815.45,814.72,1.64934325]
[1754804537246,0.5,815.38,814.72,1.64934325]
[1754804538453,0.21365947,815.45,814.73,1.64934325]
[1754804540550,0.21365947,815.45,814.74,1.64934325]
[1754804540854,0.21365947,815.45,814.79,1.64934325]
[1754804541552,0.21365947,815.45,814.8,1.64934325]
[1754804542555,0.21365947,815.45,814.87,1.64934325]
[1754804543356,0.21365947,815.45,814.88,1.64934325]
[1754804543556,0.21365947,815.45,814.87,1.64934325]
[1754804544256,0.21365947,815.45,814.86,1.64934325]
[1754804544456,0.21365947,815.45,814.87,1.64934325]
[1754804545157,0.21365947,815.45,814.88,1.64934325]
[1754804545354,0.21365947,815.45,814.95,1.64934325]
[1754804545559,0.21365947,815.45,814.95,0.70098225]
[1754804545960,0.21365947,815.45,814.37,2.75971933]
[1754804546262,0.21365947,815.45,814.35,2.75971933]
[1754804546655,0.21365947,815.45,814.36,2.75971933]
[1754804547156,0.21365947,815.45,814.41,2.75971933]
[1754804547858,0.21365947,815.45,814.42,2.75971933]
[1754804548863,0.21365947,815.45,814.43,2.75971933]
[1754804549357,0.21365947,815.45,814.42,2.75971933]
[1754804549758,0.21365947,815.45,814.45,2.75971933]
[1754804550859,0.21365947,815.45,814.51,2.75971933]
[1754804551463,0.21365947,815.45,814.53,2.75971933]
[1754804551964,0.21365947,815.45,814.52,2.75971933]
[1754804554363,0.21365947,815.45,814.46,2.75971933]
[1754804556165,0.21365947,815.45,814.53,2.75971933]
[1754804561671,0.21365947,815.45,814.45,2.75971933]
[1754804562270,0.21365947,815.45,815.17,1.10466454]
[1754804562471,0.21365947,815.45,815.17,0.49074141]
[1754804562771,0.21365947,815.45,814.46,2.75971933]
[1754804562968,0.21365947,815.45,814.4,2.75971933]
[1754804563971,0.21365947,815.45,814.38,2.75971933]
[1754804564372,0.21365947,815.45,814.22,2.75971933]
[1754804564573,0.21365947,815.45,814.23,1.07277741]
[1754804564769,0.21365947,815.45,814.24,1.07277741]
[1754804564973,0.21365947,815.45,814.25,1.07277741]
[1754804565176,0.21365947,815.45,814.26,1.07277741]
[1754804565474,0.21365947,815.45,814.96,1.65698833]
[1754804565674,0.21365947,815.45,814.97,1.65698833]
[1754804566170,0.21365947,815.45,814.96,1.65698833]
[1754804568375,0.21365947,815.45,814.95,1.65698833]
[1754804571176,0.21365947,815.45,814.96,1.65698833]
[1754804573874,0.21365947,815.45,815.08,1.65698833]
[1754804574479,0.21365947,815.45,815.04,1.65698833]
[1754804576175,0.21365947,815.45,815.04,0.75679195]
[1754804576477,0.21365947,815.45,814.3,2.75971933]
[1754804576974,0.21365947,815.45,814.29,2.75971933]
[1754804577477,0.21365947,815.45,814.3,2.75971933]
[1754804578678,0.21365947,815.45,814.29,2.75971933]
[1754804579080,0.21365947,815.45,814.3,2.75971933]
[1754804582181,0.21365947,815.45,814.13,2.75971933]
[1754804582385,0.21365947,815.45,814.14,1.08631555]
[1754804582584,0.21365947,815.45,814.17,2.75971933]
[1754804582881,0.21365947,815.45,814.18,1.08631555]
[1754804583079,0.21365947,815.45,814.17,2.75971933]
[1754804583380,0.21365947,815.45,814.18,1.08631514]
[1754804583578,0.21365947,815.45,814.16,2.75971933]
[1754804583781,0.21365947,815.45,814.17,1.08631514]
[1754804583982,0.21365947,815.45,814.18,1.08631514]
[1754804584284,0.21365947,815.45,814.19,1.08632951]
[1754804584581,0.21365947,815.45,814.18,2.75971933]
[1754804584783,0.21365947,815.45,814.19,3.84608869]
[1754804585078,0.21365947,815.45,814.19,2.75971933]
[1754804586085,0.21365947,815.45,814.2,1.08643679]
[1754804586281,0.21365947,815.45,814.23,2.75971933]
[1754804586484,0.21365947,815.45,814.24,1.08643679]
[1754804586683,0.21365947,815.45,814.25,1.08643679]
[1754804586885,0.21365947,815.45,814.26,1.08643679]
[1754804587085,0.21365947,815.45,814.27,1.08643679]
[1754804587281,0.21365947,815.45,814.28,1.08643679]
[1754804587484,0.21365947,815.45,814.29,1.08643679]
[1754804587681,0.21365947,815.45,814.3,1.08643679]
[1754804587885,0.21365947,815.45,814.31,1.08643679]
[1754804588083,0.21365947,815.45,814.32,1.08643679]
[1754804588284,0.21365947,815.45,814.33,1.08643679]
[1754804588482,0.21365947,815.45,814.34,1.08643679]
[1754804588683,0.21365947,815.45,814.26,2.75971933]
[1754804588882,0.21365947,815.45,814.27,1.08666269]
[1754804589186,0.21365947,815.45,814.28,1.08666269]
[1754804589383,0.21365947,815.45,814.29,1.08666269]
[1754804589587,0.21365947,815.45,814.3,1.08666269]
[1754804589787,0.21365947,815.45,814.31,1.08666269]
[1754804589987,0.21365947,815.45,814.24,2.75971933]
[1754804589988,0.21365947,815.45,814.32,1.08666269]
[1754804590183,0.21365947,815.45,814.33,1.08666269]
[1754804590388,0.21365947,815.45,814.34,1.08666269]
[1754804590586,0.21365947,815.45,814.35,1.08666269]
[1754804590783,0.21365947,815.45,814.25,2.75971933]
[1754804591084,0.21365947,815.45,814.26,1.08675891]
[1754804591288,0.21365947,815.45,814.27,1.08675891]
[1754804591488,0.21365947,815.45,814.28,1.08675891]
[1754804591688,0.21365947,815.45,814.29,1.08675891]
[1754804591988,0.21365947,815.45,814.43,2.75971933]
[1754804592385,0.21365947,815.45,814.44,2.75971933]
[1754804592584,0.21365947,815.45,815.23,1.10501648]
[1754804592789,0.21365947,815.45,815.23,0.52511907]
[1754804593288,0.21365947,815.45,814.47,2.75971933]
[1754804593485,0.21365947,815.45,814.44,2.75971933]
[1754804594184,0.21365947,815.45,814.52,2.75971933]
[1754804594585,0.21365947,815.45,814.55,2.75971933]
[1754804596183,0.21365947,815.45,815.13,1.6576568]
[1754804597985,0.21365947,815.45,815.04,1.6576568]
[1754804599588,0.21365947,815.45,815.03,1.6576568]
[1754804599791,0.21365947,815.45,815.04,1.6576568]
[1754804600585,0.21365947,815.45,815.05,1.6576568]
[1754804604192,0.21365947,815.45,814.9,1.6576568]
[1754804604792,0.21365947,815.45,814.91,1.6576568]
[1754804604988,0.21365947,815.45,814.9,1.6576568]
[1754804605993,0.21365947,815.45,814.91,1.6576568]
[1754804606492,0.21365947,815.45,814.92,1.6576568]
[1754804606788,0.21365947,815.45,814.96,1.6576568]
[1754804607488,0.21365947,815.45,814.97,1.6576568]
[1754804607791,0.21365947,815.45,815.04,1.6576568]
[1754804608293,0.21365947,815.45,815.05,1.6576568]
[1754804608493,0.21365947,815.45,815.01,1.6576568]
[1754804609390,0.21365947,815.45,815.02,1.6576568]
[1754804609894,0.21365947,815.45,815.04,1.6576568]
[1754804610594,0.21365947,815.45,815.06,1.6576568]
[1754804610791,0.21365947,815.45,815.09,1.6576568]
[1754804610990,0.21365947,815.45,814.45,2.75971933]
[1754804610991,0.21365947,815.45,815.11,1.6576568]
[1754804611491,0.21365947,815.45,815.12,1.6576568]
[1754804611995,0.21365947,815.45,815.13,1.6576568]
[1754804612390,0.21365947,815.45,815.14,1.6576568]
[1754804612592,0.21365947,815.45,815.13,1.6576568]
[1754804614493,0.21365947,815.45,815.23,1.6576568]
[1754804614796,0.21365947,815.45,815.19,0.80702401]
[1754804614992,0.21365947,815.45,814.54,2.75971933]
[1754804615393,0.21365947,815.45,814.57,2.75971933]
[1754804615793,0.21365947,815.45,814.48,2.75971933]
[1754804617401,0.21365947,815.45,814.52,2.75971933]
[1754804618500,0.21365947,815.45,814.41,2.75971933]
[1754804620107,0.21365947,815.45,813.65,6.85771553]
[1754804620108,0.21365947,815.45,814.36,2.75971933]
[1754804620305,0.21365947,815.45,814.37,1.10807959]
[1754804620511,0.21365947,815.45,814.36,2.75971933]
[1754804620808,0.21365947,815.45,814.37,1.10807963]
[1754804621009,0.21365947,815.45,814.36,2.75971933]
[1754804621209,0.21365947,815.45,814.37,1.10802774]
[1754804621410,0.21365947,815.45,814.36,2.75971933]
[1754804621706,0.21365947,815.45,814.37,1.10801547]
[1754804621910,0.21365947,815.45,814.36,2.75971933]
[1754804622105,0.21365947,815.45,814.37,1.1080154]
[1754804622309,0.21365947,815.45,814.36,2.75971933]
[1754804622606,0.21365947,815.45,814.37,1.1079567]
[1754804622807,0.21365947,815.45,815.31,1.10489245]
[1754804623107,0.21365947,815.45,815.3,1.10489245]
[1754804624311,0.21365947,815.45,815.34,1.10489245]
[1754804624807,0.21365947,815.45,815.35,1.10489245]
[1754804625412,0.21365947,815.45,815.13,1.10489245]
[1754804625708,0.21365947,815.45,815.11,1.10489245]
[1754804626111,0.21365947,815.45,815.1,1.10489245]
[1754804627113,0.21365947,815.45,815.11,1.10489245]
[1754804630511,0.21365947,815.45,815.12,1.10489245]
[1754804633010,0.21365947,815.45,815.11,1.10489245]
[1754804633510,0.21365947,815.45,815.12,1.10489245]
[1754804634314,0.21365947,815.45,815.07,1.10489245]
[1754804635315,0.21365947,815.45,815.22,1.10489245]
[1754804639120,0.21365947,815.45,815.16,1.10489245]
[1754804639321,0.21365947,815.45,815.2,1.10489245]
[1754804642818,0.21365947,815.45,815.21,1.10489245]
[1754804643722,0.21365947,815.45,815.22,1.10489245]
[1754804644227,0.21365947,815.45,815.12,1.10489245]
[1754804646422,0.21365947,815.45,815.13,1.10489245]
[1754804646622,0.21365947,815.45,815.16,1.10489245]
[1754804649126,0.21365947,815.45,815.28,1.10489245]
[1754804649828,0.21365947,815.45,815.33,1.10489245]
[1754804650027,0.21365947,815.45,815.33,0.56949043]
[1754804650724,0.21365947,815.45,815.17,1.65743465]
[1754804652727,0.21365947,815.45,815.16,1.65743465]
[1754804653825,0.21365947,815.45,814.26,3.86360707]
[1754804653826,0.21365947,815.45,815.11,1.65743465]
[1754804654229,0.21365947,815.45,815.2,1.65743465]
[1754804654425,0.21365947,815.45,815.21,1.65743465]
[1754804655929,0.21365947,815.45,815.19,1.65743465]
[1754804656327,0.21365947,815.45,815.2,1.65743465]
[1754804658032,0.21365947,815.45,815.12,1.65743465]
[1754804660331,0.21365947,815.45,815.13,1.65743465]
[1754804660833,0.21365947,815.45,815.1,1.65743465]
[1754804661031,0.21365947,815.45,815.11,1.65743465]
[1754804661233,0.21365947,815.45,815.13,1.65743465]
[1754804661430,0.21365947,815.45,815.27,1.65743465]
[1754804661634,0.21365947,815.45,815.31,1.65743465]
[1754804661929,0.21365947,815.45,815.32,1.65743465]